fUSD/lending_fUSD_20241210
["ID","MTS","AMOUNT","RATE_DAILY","PERIOD"]
[344898917,1733856640066,-675.09,0.00010958,2]
[344898918,1733856640076,-675.09,0.00010958,2]
[344898920,1733856640085,-675.09,0.00010958,2]
[344898922,1733856640094,-500.0,0.00010958,2]
[344898924,1733856640103,-465.5,0.00010958,2]
[344898926,1733856640115,-540.89,0.00010958,2]
[344898928,1733856640124,-540.89,0.00010958,2]
[344898930,1733856640134,-540.89,0.00010958,2]
[344898932,1733856640143,-500.0,0.00010958,2]
[344898934,1733856640152,-540.89,0.00010958,2]
[344898936,1733856640162,-500.0,0.00010958,2]
[344898938,1733856640171,-500.0,0.00010958,2]
[344898940,1733856640180,-500.0,0.00010958,2]
[344898942,1733856640189,-500.0,0.00010958,2]
[344898944,1733856640198,-500.0,0.00010958,2]
[344898946,1733856640207,-500.0,0.00010958,2]
[344898948,1733856640216,-500.0,0.00010958,2]
[344898950,1733856640225,-500.0,0.00010958,2]
[344898952,1733856640234,-585.96,0.00010958,2]
[344898954,1733856640243,-500.0,0.00010958,2]
[344898956,1733856640252,-500.0,0.00010958,2]
[344898958,1733856640261,-585.96,0.00010958,2]
[344898960,1733856640271,-500.0,0.00010958,2]
[344898962,1733856640280,-585.96,0.00010958,2]
[344898964,1733856640289,-585.96,0.00010958,2]
[344898966,1733856640299,-500.0,0.00010958,2]
[344898968,1733856640308,-500.0,0.00010958,2]
[344898970,1733856640317,-500.0,0.00010958,2]
[344898972,1733856640326,-500.0,0.00010958,2]
[344898974,1733856640335,-500.0,0.00010958,2]
[344898976,1733856640345,-500.0,0.00010958,2]
[344898978,1733856640354,-500.0,0.00010958,2]
[344898980,1733856640366,-551.39,0.00010958,2]
[344898982,1733856640375,-500.0,0.00010958,2]
[344898984,1733856640385,-551.39,0.00010958,2]
[344898986,1733856640395,-551.39,0.00010958,2]
[344898989,1733856640406,-551.39,0.00010958,2]
[344898991,1733856640415,-500.0,0.00010958,2]
[344898993,1733856640425,-500.0,0.00010958,2]
[344898995,1733856640435,-500.0,0.00010958,2]
[344898997,1733856640445,-500.0,0.00010958,2]
[344898999,1733856640454,-500.0,0.00010958,2]
[344899001,1733856640464,-500.0,0.00010958,2]
[344899003,1733856640473,-500.0,0.00010958,2]
[344899005,1733856640483,-500.0,0.00010958,2]
[344899007,1733856640492,-500.0,0.00010958,2]
[344899008,1733856640502,-500.0,0.00010958,2]
[344899009,1733856640511,-500.0,0.00010958,2]
[344899010,1733856640520,-284.23,0.00010958,2]
[344899011,1733856640531,-3335.6,0.00010958,2]
[344899012,1733856640540,-3335.6,0.00010958,2]
[344899013,1733856640549,-3335.6,0.00010958,2]
[344899014,1733856640559,-3335.6,0.00010958,2]
[344899015,1733856640568,-1065.91,0.00010958,2]
[344899017,1733856640578,-933.86,0.00010958,2]
[344899019,1733856640587,-1065.91,0.00010958,2]
[344899021,1733856640597,-933.86,0.00010958,2]
[344899023,1733856640606,-1065.91,0.00010958,2]
[344899025,1733856640620,-289.07330778,0.00010958,2]
[344899028,1733856640641,-644.78669222,0.00010958,2]
[344899030,1733856640650,-74.10330781,0.00010958,2]
[344899225,1733856642683,-859.75669219,0.00010958,2]
[344899228,1733856642693,-1065.91,0.00010958,2]
[344899231,1733856642703,-367.07,0.00010958,2]
[344899235,1733856642712,-747.10385106,0.00010958,2]
[344899273,1733856642914,-753.22614894,0.00010958,2]
[344899276,1733856642925,-500.0,0.00010958,2]
[344899278,1733856642935,-1500.33,0.00010958,2]
[344899280,1733856642944,-500.0,0.00010958,2]
[344899282,1733856642953,-1500.33,0.00010958,2]
[344899284,1733856642963,-2400.09,0.00010958,2]
[344899286,1733856642972,-500.0,0.00010958,2]
[344899288,1733856642981,-1500.33,0.00010958,2]
[344899290,1733856642991,-2400.09,0.00010958,2]
[344899292,1733856642999,-500.0,0.00010958,2]
[344899294,1733856643008,-500.0,0.00010958,2]
[344899295,1733856643017,-2400.09,0.00010958,2]
[344899297,1733856643027,-500.0,0.00010958,2]
[344899299,1733856643036,-1744.95843666,0.00010958,2]
[344899304,1733856643070,-655.13156334,0.00010958,2]
[344899306,1733856643079,-151.89842866,0.00010958,2]
[344899387,1733856645968,-348.10157134,0.00010958,2]
[344899388,1733856645978,-500.0,0.00010958,2]
[344899389,1733856645988,-8169.31,0.00010958,2]
[344899390,1733856645997,-8169.31,0.00010958,2]
[344899391,1733856646007,-8169.31,0.00010958,2]
[344899392,1733856646017,-55.68906171,0.00010958,2]
[344899393,1733856646051,-7399.2442099,0.00010958,2]
[344899394,1733856646063,-714.37672839,0.00010958,2]
[344899395,1733856646073,-500.0,0.00010958,2]
[344899396,1733856646083,-500.0,0.00010958,2]
[344899397,1733856646093,-394.22327191,0.00010958,2]
[344899398,1733856646105,-105.77672809,0.00010958,2]
[344899399,1733856646115,-322.44327211,0.00010958,2]
[344899400,1733856646127,-177.55672789,0.00010958,2]
[344899401,1733856646137,-15176.29,0.00010958,2]
[344899402,1733856646147,-15176.29,0.00010958,2]
[344899403,1733856646157,-15176.29,0.00010958,2]
[344899404,1733856646166,-2215.63,0.00010958,2]
[344899405,1733856646175,-15176.29,0.00010958,2]
[344899406,1733856646185,-2215.63,0.00010958,2]
[344899407,1733856646194,-2215.63,0.00010958,2]
[344899408,1733856646203,-2215.63,0.00010958,2]
[344899409,1733856646213,-500.0,0.00010958,2]
[344899410,1733856646223,-500.0,0.00010958,2]
[344899411,1733856646232,-500.0,0.00010958,2]
[344899412,1733856646242,-500.0,0.00010958,2]
[344899413,1733856646251,-1924.97,0.00010958,2]
[344899414,1733856646261,-1924.97,0.00010958,2]
[344899415,1733856646271,-500.0,0.00010958,2]
[344899416,1733856646280,-1924.97,0.00010958,2]
[344899417,1733856646290,-500.0,0.00010958,2]
[344899418,1733856646299,-1924.97,0.00010958,2]
[344899419,1733856646309,-500.0,0.00010958,2]
[344899420,1733856646318,-1119.93,0.00010958,2]
[344899421,1733856646328,-500.0,0.00010958,2]
[344899422,1733856646338,-1119.93,0.00010958,2]
[344899423,1733856646348,-1119.93,0.00010958,2]
[344899424,1733856646357,-1119.93,0.00010958,2]
[344899425,1733856646368,-500.0,0.00010958,2]
[344899426,1733856646378,-500.0,0.00010958,2]
[344899428,1733856646388,-500.0,0.00010958,2]
[344899430,1733856646398,-500.0,0.00010958,2]
[344899432,1733856646408,-500.0,0.00010958,2]
[344899434,1733856646419,-500.0,0.00010958,2]
[344899437,1733856646429,-500.0,0.00010958,2]
[344899439,1733856646439,-345.0555242,0.00010958,2]
[344899441,1733856646449,-2240.03,0.00010958,2]
[344899442,1733856646460,-853.66,0.00010958,2]
[344899443,1733856646471,-2240.03,0.00010958,2]
[344899444,1733856646481,-853.66,0.00010958,2]
[344899445,1733856646493,-2240.03,0.00010958,2]
[344899446,1733856646503,-853.66,0.00010958,2]
[344899447,1733856646514,-2240.03,0.00010958,2]
[344899448,1733856646525,-853.66,0.00010958,2]
[344899449,1733856646537,-500.0,0.00010958,2]
[344899450,1733856646547,-500.0,0.00010958,2]
[344899451,1733856646558,-500.0,0.00010958,2]
[344899452,1733856646569,-629.67,0.00010958,2]
[344899453,1733856646581,-500.0,0.00010958,2]
[344899454,1733856646592,-500.0,0.00010958,2]
[344899455,1733856646603,-500.0,0.00010958,2]
[344899456,1733856646614,-500.0,0.00010958,2]
[344899457,1733856646626,-200.0,0.00010958,2]
[344899458,1733856646636,-1531.7,0.00010958,2]
[344899459,1733856646646,-1531.7,0.00010958,2]
[344899460,1733856646656,-1531.7,0.00010958,2]
[344899461,1733856646666,-1531.7,0.00010958,2]
[344899462,1733856646676,-500.0,0.00010958,2]
[344899463,1733856646686,-289.09,0.00010958,2]
[344899464,1733856646696,-636.6,0.00010958,2]
[344899465,1733856646705,-636.6,0.00010958,2]
[344899466,1733856646715,-636.6,0.00010958,2]
[344899467,1733856646725,-636.6,0.00010958,2]
[344899468,1733856646734,-500.0,0.00010958,2]
[344899469,1733856646747,-500.0,0.00010958,2]
[344899470,1733856646756,-500.0,0.00010958,2]
[344899471,1733856646766,-500.0,0.00010958,2]
[344899472,1733856646776,-500.0,0.00010958,2]
[344899473,1733856646788,-500.0,0.00010958,2]
[344899474,1733856646797,-500.0,0.00010958,2]
[344899475,1733856646807,-500.0,0.00010958,2]
[344899476,1733856646818,-500.0,0.00010958,2]
[344899477,1733856646827,-500.0,0.00010958,2]
[344899478,1733856646837,-500.0,0.00010958,2]
[344899479,1733856646847,-500.0,0.00010958,2]
[344899480,1733856646857,-7195.25,0.00010958,2]
[344899481,1733856646868,-7195.25,0.00010958,2]
[344899482,1733856646877,-7195.25,0.00010958,2]
[344899483,1733856646887,-7195.25,0.00010958,2]
[344899484,1733856646897,-1625.88,0.00010958,2]
[344899485,1733856646907,-1625.88,0.00010958,2]
[344899486,1733856646917,-500.0,0.00010958,2]
[344899487,1733856646927,-1625.88,0.00010958,2]
[344899488,1733856646937,-500.0,0.00010958,2]
[344899489,1733856646948,-1625.88,0.00010958,2]
[344899490,1733856646958,-500.0,0.00010958,2]
[344899491,1733856646968,-500.0,0.00010958,2]
[344899492,1733856646978,-523.16,0.00010958,2]
[344899493,1733856646988,-500.0,0.00010958,2]
[344899494,1733856646998,-518.47,0.00010958,2]
[344899495,1733856647008,-500.0,0.00010958,2]
[344899496,1733856647017,-500.0,0.00010958,2]
[344899497,1733856647027,-500.0,0.00010958,2]
[344899498,1733856647037,-500.0,0.00010958,2]
[344899499,1733856647047,-500.0,0.00010958,2]
[344899500,1733856647056,-412.11201716,0.00010958,2]
[344899501,1733856647065,-500.0,0.00010958,2]
[344899502,1733856647075,-1003.94,0.00010958,2]
[344899503,1733856647086,-980.43,0.00010958,2]
[344899504,1733856647096,-982.85,0.00010958,2]
[344899505,1733856647106,-987.51,0.00010958,2]
[344899506,1733856647116,-1001.99,0.00010958,2]
[344899507,1733856647127,-989.4,0.00010958,2]
[344899508,1733856647138,-1008.48,0.00010958,2]
[344899509,1733856647148,-990.3,0.00010958,2]
[344899510,1733856647158,-1006.38,0.00010958,2]
[344899511,1733856647167,-1013.79,0.00010958,2]
[344899512,1733856647176,-200.0,0.00010959,2]
[344899513,1733856647186,-200.0,0.00010959,2]
[344899514,1733856647196,-150.0,0.00010959,2]
[344899515,1733856647205,-347.36449232,0.00010961,2]
[344899516,1733856647216,-1098.8924458,0.00010967,2]
[344899517,1733856647225,-4340.45514694,0.00010968,2]
[344899518,1733856647235,-4340.45514694,0.00010968,2]
[344899519,1733856647244,-2456.04075335,0.00010968,2]
[344899520,1733856647254,-6032.53961478,0.00010968,2]
[344899521,1733856647263,-283.17472206,0.00010969,2]
[344899522,1733856647273,-283.17472206,0.00010969,2]
[344899523,1733856647282,-339.68277743,0.00010969,2]
[344899524,1733856647292,-511.67996964,0.00010969,2]
[344899525,1733856647301,-7058.78091462,0.00010969,2]
[344899526,1733856647311,-3352.76298553,0.00010969,2]
[344899527,1733856647320,-511.67996964,0.00010969,2]
[344899528,1733856647330,-200.0,0.0001097,2]
[344899529,1733856647340,-142149.65452148,0.0001097,2]
[344899530,1733856682185,-48970.79919776,0.0001097,2]
[344899531,1733856682195,-1098.8924458,0.0001097,2]
[344899532,1733856682205,-5658.52192784,0.0001097,2]
[344899533,1733856682214,-11141.7864686,0.0001097,2]
[344899534,1733856682225,-4735.83500956,0.0001097,2]
[344899535,1733856682234,-567.0,0.00010971,2]
[344899536,1733856682244,-1262.0,0.00010971,2]
[344899537,1733856682253,-631.0,0.00010971,2]
[344899538,1733856682263,-1847.3092763,0.00010971,2]
[344899539,1733856684134,-872.571,0.0001731,90]
[344899540,1733856958457,911.2,8.219e-05,2]
[344899543,1733857720433,1500.0,9.493e-05,2]
[344899546,1733857831951,-250.0,9.665e-05,2]
[344899547,1733857831961,-250.0,9.713e-05,2]
[344899548,1733857831970,-200.0,9.783e-05,2]
[344899549,1733857831980,-23900.0,9.801e-05,2]
[344899550,1733857831990,-182.46542583,9.818e-05,2]
[344899551,1733857832000,-1000.0,9.818e-05,2]
[344899552,1733857832009,-753.3,9.854e-05,2]
[344899553,1733857832019,-183.79,9.863e-05,2]
[344899554,1733857832030,-159.26,9.945e-05,2]
[344899555,1733857832039,-991.94,0.00010116,2]
[344899556,1733857832049,-691.9,0.00010116,2]
[344899557,1733857832058,-8072.9,0.00010116,2]
[344899558,1733857832068,-150.99,0.00010116,2]
[344899559,1733857832077,-1017.16,0.00010143,2]
[344899560,1733857832086,-423.48,0.00010143,2]
[344899561,1733857832096,-1002.7,0.00010174,2]
[344899562,1733857832106,-182.46542581,0.00010188,2]
[344899563,1733857832117,-990.77,0.00010211,2]
[344899564,1733857832129,-994.92,0.00010253,2]
[344899565,1733857832142,-995.97,0.00010303,2]
[344899566,1733857832157,-1500.0,0.00010313,2]
[344899567,1733857832167,-991.23,0.0001036,2]
[344899568,1733857832176,-262.0,0.00010384,2]
[344899569,1733857832185,-453.967,0.0001042,2]
[344899570,1733857832195,-998.78,0.00010426,2]
[344899571,1733857832206,-911.2,0.00010471,2]
[344899572,1733857832216,-1019.22,0.00010502,2]
[344899573,1733857832226,-200.0,0.00010572,2]
[344899574,1733857832236,-987.25,0.00010591,2]
[344899575,1733857832245,-5967.0,0.00010621,2]
[344899576,1733857832255,-13723.0,0.00010621,2]
[344899577,1733857832263,-150.0,0.00010621,2]
[344899578,1733857832272,-1167.0,0.00010621,2]
[344899579,1733857832281,-150.903432,0.00010656,2]
[344899580,1733857832292,-182.46542581,0.00010658,2]
[344899581,1733857832301,-996.17,0.00010695,2]
[344899582,1733857832311,-1000.0,0.000107,2]
[344899583,1733857832320,-1500.0,0.00010711,2]
[344899584,1733857832330,-500.0,0.00010758,2]
[344899585,1733857832339,-997.01,0.00010773,2]
[344899586,1733857832348,-981.13,0.00010785,2]
[344899587,1733857832358,-998.58,0.00010798,2]
[344899588,1733857832367,-1000.0,0.000108,2]
[344899589,1733857832376,-983.06,0.00010819,2]
[344899590,1733857832385,-1002.18,0.00010849,2]
[344899592,1733857832396,-493.68569055,0.00010858,2]
[344899596,1733857832426,-438.1314448,0.00010858,2]
[344899598,1733857832441,-64.70286465,0.00010858,2]
[344899600,1733857832451,-981.30448279,0.00010858,2]
[344900034,1733857837734,-3222.91651721,0.00010858,2]
[344900035,1733857837744,-1726.012,0.0001088,2]
[344900036,1733857837754,-2025.17192791,0.000109,2]
[344900037,1733857837763,-151.97196548,0.000109,2]
[344900038,1733857837773,-151.97196539,0.000109,2]
[344900039,1733857837783,-151.97196539,0.000109,2]
[344900040,1733857837792,-151.97196539,0.000109,2]
[344900041,1733857837802,-151.97196539,0.000109,2]
[344900042,1733857837811,-157.15047127,0.000109,2]
[344900043,1733857837820,-151.97196539,0.00010904,2]
[344900044,1733857837829,-29.81918078,0.00010913,2]
[344900045,1733857837840,-122.15278461,0.00010913,2]
[344900046,1733857837850,-151.97196539,0.00010922,2]
[344900047,1733857837859,-1500.0,0.00010931,2]
[344900048,1733857837868,-151.97196539,0.00010931,2]
[344900049,1733857837878,-151.97196539,0.0001094,2]
[344900050,1733857837887,-151.97196539,0.00010949,2]
[344900051,1733857837899,-500.0,0.00010958,2]
[344900052,1733857837908,-500.0,0.00010958,2]
[344900053,1733857837920,-456.52,0.00010958,2]
[344900054,1733857837929,-500.0,0.00010958,2]
[344900055,1733857837938,-500.0,0.00010958,2]
[344900056,1733857837947,-500.0,0.00010958,2]
[344900057,1733857837957,-500.0,0.00010958,2]
[344900058,1733857837966,-500.0,0.00010958,2]
[344900059,1733857837975,-288.57,0.00010958,2]
[344900060,1733857837986,-500.0,0.00010958,2]
[344900061,1733857837995,-500.0,0.00010958,2]
[344900062,1733857838005,-500.0,0.00010958,2]
[344900063,1733857838014,-500.0,0.00010958,2]
[344900064,1733857838023,-500.0,0.00010958,2]
[344900065,1733857838032,-456.82,0.00010958,2]
[344900066,1733857838042,-500.0,0.00010958,2]
[344900067,1733857838051,-500.0,0.00010958,2]
[344900068,1733857838060,-500.0,0.00010958,2]
[344900069,1733857838070,-500.0,0.00010958,2]
[344900070,1733857838079,-500.0,0.00010958,2]
[344900071,1733857838089,-17.46691215,0.00010958,2]
[344900072,1733857838101,-482.53308785,0.00010958,2]
[344900073,1733857838111,-500.0,0.00010958,2]
[344900074,1733857838121,-500.0,0.00010958,2]
[344900075,1733857838134,-500.0,0.00010958,2]
[344900076,1733857838145,-500.0,0.00010958,2]
[344900077,1733857838158,-500.0,0.00010958,2]
[344900078,1733857838169,-500.0,0.00010958,2]
[344900079,1733857838178,-272.5016812,0.00010958,2]
[344900082,1733857838190,-227.4983188,0.00010958,2]
[344900084,1733857838199,-500.0,0.00010958,2]
[344900085,1733857838209,-500.0,0.00010958,2]
[344900087,1733857838218,-500.0,0.00010958,2]
[344900088,1733857838227,-500.0,0.00010958,2]
[344900089,1733857838237,-500.0,0.00010958,2]
[344900090,1733857838246,-500.0,0.00010958,2]
[344900091,1733857838255,-500.0,0.00010958,2]
[344900092,1733857838264,-500.0,0.00010958,2]
[344900093,1733857838273,-500.0,0.00010958,2]
[344900094,1733857838283,-500.0,0.00010958,2]
[344900095,1733857838292,-500.0,0.00010958,2]
[344900096,1733857838302,-500.0,0.00010958,2]
[344900097,1733857838311,-500.0,0.00010958,2]
[344900098,1733857838320,-500.0,0.00010958,2]
[344900099,1733857838329,-500.0,0.00010958,2]
[344900100,1733857838338,-500.0,0.00010958,2]
[344900101,1733857838347,-500.0,0.00010958,2]
[344900102,1733857838357,-500.0,0.00010958,2]
[344900103,1733857838366,-500.0,0.00010958,2]
[344900104,1733857838375,-500.0,0.00010958,2]
[344900105,1733857838385,-500.0,0.00010958,2]
[344900106,1733857838396,-500.0,0.00010958,2]
[344900107,1733857838406,-500.0,0.00010958,2]
[344900108,1733857838426,-500.0,0.00010958,2]
[344900109,1733857838436,-500.0,0.00010958,2]
[344900110,1733857838445,-500.0,0.00010958,2]
[344900112,1733857838454,-500.0,0.00010958,2]
[344900114,1733857838464,-500.0,0.00010958,2]
[344900116,1733857838473,-500.0,0.00010958,2]
[344900119,1733857838483,-500.0,0.00010958,2]
[344900122,1733857838492,-500.0,0.00010958,2]
[344900125,1733857838502,-500.0,0.00010958,2]
[344900128,1733857838511,-500.0,0.00010958,2]
[344900131,1733857838520,-455.5806812,0.00010958,2]
[344900134,1733857838533,-44.4193188,0.00010958,2]
[344900136,1733857838543,-500.0,0.00010958,2]
[344900138,1733857838552,-500.0,0.00010958,2]
[344900140,1733857838562,-500.0,0.00010958,2]
[344900143,1733857838571,-319.57671112,0.00010958,2]
[344900296,1733857839927,-180.42328888,0.00010958,2]
[344900298,1733857839936,-500.0,0.00010958,2]
[344900300,1733857839946,-500.0,0.00010958,2]
[344900302,1733857839956,-500.0,0.00010958,2]
[344900303,1733857839965,-500.0,0.00010958,2]
[344900305,1733857839974,-500.0,0.00010958,2]
[344900307,1733857839984,-500.0,0.00010958,2]
[344900309,1733857839994,-500.0,0.00010958,2]
[344900311,1733857840003,-500.0,0.00010958,2]
[344900313,1733857840012,-500.0,0.00010958,2]
[344900314,1733857840021,-500.0,0.00010958,2]
[344900316,1733857840030,-500.0,0.00010958,2]
[344900318,1733857840039,-500.0,0.00010958,2]
[344900320,1733857840048,-568.32,0.00010958,2]
[344900322,1733857840057,-500.0,0.00010958,2]
[344900324,1733857840066,-500.0,0.00010958,2]
[344900326,1733857840076,-500.0,0.00010958,2]
[344900328,1733857840085,-500.0,0.00010958,2]
[344900330,1733857840095,-500.0,0.00010958,2]
[344900332,1733857840104,-500.0,0.00010958,2]
[344900334,1733857840114,-249.49,0.00010958,2]
[344900335,1733857840123,-500.0,0.00010958,2]
[344900337,1733857840136,-500.0,0.00010958,2]
[344900339,1733857840147,-500.0,0.00010958,2]
[344900341,1733857840156,-500.0,0.00010958,2]
[344900343,1733857840166,-500.0,0.00010958,2]
[344900345,1733857840175,-500.0,0.00010958,2]
[344900347,1733857840184,-500.0,0.00010958,2]
[344900349,1733857840194,-500.0,0.00010958,2]
[344900351,1733857840205,-500.0,0.00010958,2]
[344900352,1733857840214,-500.0,0.00010958,2]
[344900354,1733857840224,-500.0,0.00010958,2]
[344900356,1733857840233,-500.0,0.00010958,2]
[344900358,1733857840242,-438.75468196,0.00010958,2]
[344900361,1733857840252,-500.0,0.00010958,2]
[344900363,1733857840262,-500.0,0.00010958,2]
[344900364,1733857840272,-500.0,0.00010958,2]
[344900366,1733857840281,-500.0,0.00010958,2]
[344900369,1733857840291,-500.0,0.00010958,2]
[344900371,1733857840301,-500.0,0.00010958,2]
[344900372,1733857840310,-500.0,0.00010958,2]
[344900373,1733857840319,-500.0,0.00010958,2]
[344900374,1733857840328,-500.0,0.00010958,2]
[344900375,1733857840337,-500.0,0.00010958,2]
[344900376,1733857840346,-500.0,0.00010958,2]
[344900377,1733857840355,-500.0,0.00010958,2]
[344900378,1733857840365,-500.0,0.00010958,2]
[344900379,1733857840374,-500.0,0.00010958,2]
[344900380,1733857840383,-605.05,0.00010958,2]
[344900381,1733857840392,-500.0,0.00010958,2]
[344900382,1733857840404,-427.75,0.00010958,2]
[344900383,1733857840414,-339.59,0.00010958,2]
[344900384,1733857840424,-500.0,0.00010958,2]
[344900386,1733857840433,-500.0,0.00010958,2]
[344900388,1733857840443,-500.0,0.00010958,2]
[344900390,1733857840452,-344.92,0.00010958,2]
[344900392,1733857840461,-336.17,0.00010958,2]
[344900394,1733857840470,-500.0,0.00010958,2]
[344900396,1733857840480,-500.0,0.00010958,2]
[344900398,1733857840489,-500.0,0.00010958,2]
[344900400,1733857840498,-500.0,0.00010958,2]
[344900402,1733857840510,-500.0,0.00010958,2]
[344900404,1733857840519,-500.0,0.00010958,2]
[344900406,1733857840528,-500.0,0.00010958,2]
[344900408,1733857840537,-255.42,0.00010958,2]
[344900410,1733857840546,-353.96978941,0.00010958,2]
[344900412,1733857840559,-146.03021059,0.00010958,2]
[344900414,1733857840569,-500.0,0.00010958,2]
[344900416,1733857840578,-364.99,0.00010958,2]
[344900418,1733857840587,-260.57,0.00010958,2]
[344900420,1733857840596,-500.0,0.00010958,2]
[344900422,1733857840605,-500.0,0.00010958,2]
[344900424,1733857840615,-321.09,0.00010958,2]
[344900426,1733857840624,-500.0,0.00010958,2]
[344900428,1733857840633,-500.0,0.00010958,2]
[344900430,1733857840642,-500.0,0.00010958,2]
[344900432,1733857840654,-500.0,0.00010958,2]
[344900434,1733857840663,-500.0,0.00010958,2]
[344900436,1733857840672,-500.0,0.00010958,2]
[344900438,1733857840682,-500.0,0.00010958,2]
[344900440,1733857840691,-500.0,0.00010958,2]
[344900442,1733857840700,-500.0,0.00010958,2]
[344900444,1733857840709,-222.85,0.00010958,2]
[344900446,1733857840719,-500.0,0.00010958,2]
[344900449,1733857840728,-500.0,0.00010958,2]
[344900451,1733857840738,-500.0,0.00010958,2]
[344900453,1733857840747,-500.0,0.00010958,2]
[344900454,1733857840756,-500.0,0.00010958,2]
[344900456,1733857840766,-500.0,0.00010958,2]
[344900459,1733857840776,-500.0,0.00010958,2]
[344900460,1733857840785,-500.0,0.00010958,2]
[344900462,1733857840795,-500.0,0.00010958,2]
[344900464,1733857840804,-276.4,0.00010958,2]
[344900467,1733857840813,-500.0,0.00010958,2]
[344900468,1733857840822,-500.0,0.00010958,2]
[344900471,1733857840832,-500.0,0.00010958,2]
[344900473,1733857840842,-500.0,0.00010958,2]
[344900474,1733857840852,-500.0,0.00010958,2]
[344900476,1733857840861,-578.74,0.00010958,2]
[344900478,1733857840871,-500.0,0.00010958,2]
[344900480,1733857840880,-500.0,0.00010958,2]
[344900482,1733857840889,-500.0,0.00010958,2]
[344900484,1733857840901,-500.0,0.00010958,2]
[344900486,1733857840911,-500.0,0.00010958,2]
[344900488,1733857840920,-500.0,0.00010958,2]
[344900490,1733857840930,-221.49254864,0.00010958,2]
[344900492,1733857840939,-512.3,0.00010958,2]
[344900494,1733857840948,-512.3,0.00010958,2]
[344900496,1733857840957,-512.3,0.00010958,2]
[344900498,1733857840966,-500.0,0.00010958,2]
[344900500,1733857840978,-512.3,0.00010958,2]
[344900502,1733857840987,-500.0,0.00010958,2]
[344900504,1733857840998,-626.2,0.00010958,2]
[344900506,1733857841007,-500.0,0.00010958,2]
[344900508,1733857841016,-500.0,0.00010958,2]
[344900510,1733857841026,-500.0,0.00010958,2]
[344900512,1733857841036,-500.0,0.00010958,2]
[344900514,1733857841046,-500.0,0.00010958,2]
[344900516,1733857841055,-500.0,0.00010958,2]
[344900518,1733857841065,-500.0,0.00010958,2]
[344900520,1733857841074,-500.0,0.00010958,2]
[344900522,1733857841083,-500.0,0.00010958,2]
[344900524,1733857841092,-500.0,0.00010958,2]
[344900526,1733857841102,-500.0,0.00010958,2]
[344900528,1733857841111,-500.0,0.00010958,2]
[344900530,1733857841121,-500.0,0.00010958,2]
[344900532,1733857841132,-500.0,0.00010958,2]
[344900534,1733857841142,-423.87,0.00010958,2]
[344900536,1733857841154,-500.0,0.00010958,2]
[344900538,1733857841163,-500.0,0.00010958,2]
[344900540,1733857841173,-625.85,0.00010958,2]
[344900542,1733857841182,-500.0,0.00010958,2]
[344900544,1733857841192,-500.0,0.00010958,2]
[344900546,1733857841201,-500.0,0.00010958,2]
[344900548,1733857841213,-156.983458,0.00010958,2]
[344900550,1733857841223,-500.0,0.00010958,2]
[344900552,1733857841232,-640.16,0.00010958,2]